[Event "POR-chT 1st League 2017"]
[Site "Leiria"]
[Date "2017.07.22"]
[Round "8"]
[White "Leao, Tiago Miguel Da Sil"]
[Black "Lombaers, Peter"]
[Result "0-1"]
[ECO "B48"]
[WhiteElo "2075"]
[BlackElo "2327"]
[Annotator "NA"]
[PlyCount "136"]
[EventDate "2017.??.??"]
[EventType "team-tourn"]
[EventCountry "POR"]
[SourceTitle "playchess.com"]
[Source "ChessBase"]
[SourceQuality "1"]
[TimeControl "5400+30"]

1. e4 {[%emt 0:01:20]} c5 {[%emt 0:00:05]} 2. Nf3 {[%emt 0:00:03]} e6 {[%emt 0:00:04]} 3. d4 {[%emt 0:00:03]} cxd4 4. Nxd4 {[%emt 0:00:04]} Nc6 {[%emt 0:00:10]} 5. Nc3 {[%emt 0:00:04]} Qc7 {[%emt 0:00:05]} 6. Be3 {[%emt 0:00:28]} a6 {[%emt 0:00:06]} 7. Qf3 {[%emt 0:00:06]} d6 {[%emt 0:00:09]} 8. O-O-O {[%emt 0:00:54]} Bd7 {[%emt 0:00:05]} 9. Qg3 {[%emt 0:01:36]} Nf6 {[%emt 0:05:49]} 10. f4 {[%emt 0:06:36]} g6 {[%emt 0:16:31]} 11. Bd3 {[%emt 0:18:04]} Bg7 {[%emt 0:03:03]} 12. f5 {[%emt 0:07:47]} O-O {[%emt 0:05:08]} 13. h4 {[%emt 0:04:17]} Rfe8 {[%emt 0:21:16]} 14. fxg6 {[%emt 0:06:58]} hxg6 {[%emt 0:00:21]} 15. h5 {[%emt 0:03:13]} Nxd4 {[%emt 0:09:33]} 16. Bxd4 {[%emt 0:14:35]} Nxh5 {[%emt 0:01:37]} 17. Rxh5 {[%emt 0:00:40]} Bxd4 {[%emt 0:00:36]} 18. Rf1 {[%emt 0:04:50]} Be5 {[%emt 0:12:44]} 19. Qf3 {[%emt 0:09:47]} Bc6 {[%emt 0:04:26]} 20. Rg5 {[%emt 0:06:17]} Qe7 {[%emt 0:01:32]} 21. Qg4 {[%emt 0:01:37]} Kg7 {[%emt 0:02:27]} 22. Nd5 {[%emt 0:01:11]} exd5 {[%emt 0:07:14]} 23. exd5 {[%emt 0:00:07]} Qxg5+ {[%emt 0:00:42]} 24. Qxg5 {[%emt 0:00:21]} Bxd5 {[%emt 0:00:04]} 25. b3 {[%emt 0:05:45]} b5 {[%emt 0:01:00]} 26. Kd1 {[%emt 0:00:25]} Rac8 {[%emt 0:01:54]} 27. Qg4 {[%emt 0:01:21]} Be6 {[%emt 0:00:57]} 28. Bf5 {[%emt 0:01:20]} Bxf5 {[%emt 0:00:13]} 29. Rxf5 {[%emt 0:00:05]} Bc3 {[%emt 0:00:22]} 30. Rf1 {[%emt 0:00:07]} b4 {[%emt 0:02:06]} 31. Qd7 {[%emt 0:01:05]} Rf8 {[%emt 0:02:31]} 32. Ke2 {[%emt 0:00:49]} Bf6 {[%emt 0:02:33]} 33. Kd1 {[%emt 0:01:19]} Rcd8 {[%emt 0:00:21]} 34. Qa7 {[%emt 0:00:38]} Ra8 {[%emt 0:00:42]} 35. Qd7 {[%emt 0:00:14]} a5 {[%emt 0:00:14]} 36. Qb7 {[%emt 0:00:43]} Bc3 {[%emt 0:00:15]} 37. Ke2 {[%emt 0:01:05]} Rae8+ {[%emt 0:00:24]} 38. Kd3 {[%emt 0:00:23]} Re5 {[%emt 0:00:21]} 39. a4 {[%emt 0:01:42]} Rg5 {[%emt 0:00:41]} 40. Rf3 {[%emt 0:01:12]} d5 {[%emt 0:00:41]} 41. g3 {[%emt 0:00:31]} Rh5 {[%emt 0:00:25]} 42. Rf2 {[%emt 0:00:24]} Re5 {[%emt 0:00:46]} 43. Qc7 {[%emt 0:00:19]} Re1 {[%emt 0:00:30]} 44. Qd7 {[%emt 0:00:41]} Rg1 {[%emt 0:00:32]} 45. Rf3 {[%emt 0:00:51]} Rg2 {[%emt 0:00:05]} 46. Qe7 {[%emt 0:00:27]} Rd2+ {[%emt 0:00:20]} 47. Ke3 {[%emt 0:00:07]} Rxc2 {[%emt 0:00:23]} 48. g4 {[%emt 0:00:52]} Rb2 {[%emt 0:00:25]} 49. g5 {[%emt 0:00:25]} Rxb3 {[%emt 0:00:14]} 50. Ke2 {[%emt 0:00:12]} Rb2+ {[%emt 0:00:14]} 51. Kf1 {[%emt 0:00:23]} Ra2 {[%emt 0:00:44]} 52. Qc7 {[%emt 0:01:05]} Rxa4 {[%emt 0:00:28]} 53. Rxc3 {[%emt 0:00:13]} bxc3 {[%emt 0:00:05]} 54. Qxc3+ {[%emt 0:00:43]} Kg8 {[%emt 0:00:05]} 55. Qb3 {[%emt 0:00:30]} Rf4+ {[%emt 0:00:04]} 56. Ke2 {[%emt 0:00:19]} Rf5 {[%emt 0:00:05]} 57. Qa4 {[%emt 0:00:40]} Rxg5 {[%emt 0:00:08]} 58. Qxa5 {[%emt 0:00:05]} Re8+ {[%emt 0:00:06]} 59. Kf3 {[%emt 0:00:08]} Rf5+ {[%emt 0:00:04]} 60. Kg3 {[%emt 0:00:11]} Re3+ {[%emt 0:00:07]} 61. Kg2 {[%emt 0:00:09]} Re4 {[%emt 0:00:19]} 62. Kh3 {[%emt 0:00:31]} Kh7 {[%emt 0:00:23]} 63. Qa8 {[%emt 0:00:40]} Ree5 {[%emt 0:00:47]} 64. Kg4 {[%emt 0:00:18]} d4 {[%emt 0:00:26]} 65. Qd8 {[%emt 0:00:53]} Rd5 {[%emt 0:00:07]} 66. Qh4+ {[%emt 0:00:19]} Kg7 {[%emt 0:00:09]} 67. Qe1 {[%emt 0:00:11]} d3 {[%emt 0:00:25]} 68. Qa1+ {[%emt 0:00:08]} Rfe5 {[%emt 0:00:05]} 0-1

[Event "POR-chT 1st League 2017"]
[Site "Leiria"]
[Date "2017.07.22"]
[Round "8"]
[White "Trindade, Rui Jorge Rodrigues"]
[Black "Diogo, Vasco"]
[Result "1-0"]
[ECO "A48"]
[WhiteElo "2033"]
[BlackElo "2213"]
[Annotator "NA"]
[PlyCount "90"]
[EventDate "2017.??.??"]
[EventType "team-tourn"]
[EventCountry "POR"]
[SourceTitle "playchess.com"]
[Source "ChessBase"]
[SourceQuality "1"]
[TimeControl "5400+30"]

1. d4 {[%emt 0:00:00]} Nf6 {[%emt 0:00:09]} 2. Nf3 {[%emt 0:00:00]} g6 {[%emt 0:00:08]} 3. Bf4 {[%emt 0:00:52]} Bg7 {[%emt 0:00:19]} 4. e3 {[%emt 0:00:35]} O-O {[%emt 0:00:46]} 5. Be2 {[%emt 0:00:35]} b6 {[%emt 0:02:20]} 6. O-O {[%emt 0:00:55]} Bb7 {[%emt 0:00:19]} 7. c4 {[%emt 0:01:01]} d6 {[%emt 0:00:20]} 8. h3 {[%emt 0:02:19]} Nbd7 {[%emt 0:00:34]} 9. Nc3 {[%emt 0:00:23]} Re8 {[%emt 0:03:59]} 10. Qc2 {[%emt 0:04:43]} e5 {[%emt 0:05:16]} 11. dxe5 {[%emt 0:00:16]} dxe5 {[%emt 0:03:40]} 12. Bh2 {[%emt 0:00:34]} Qe7 {[%emt 0:08:31]} 13. Rad1 {[%emt 0:01:24]} c6 {[%emt 0:01:39]} 14. a3 {[%emt 0:03:56]} a5 {[%emt 0:02:35]} 15. Rd2 e4 {[%emt 0:14:51]} 16. Nd4 Ne5 17. Qb3 {[%emt 0:17:38]} c5 {[%emt 0:04:55]} 18. Ndb5 {[%emt 0:00:40]} Nf3+ {[%emt 0:01:56]} 19. Bxf3 {[%emt 0:04:46]} exf3 {[%emt 0:00:07]} 20. Nc7 {[%emt 0:00:27]} fxg2 {[%emt 0:03:45]} 21. Rfd1 {[%emt 0:01:54]} Bf3 {[%emt 0:05:35]} 22. Nxe8 {[%emt 0:03:32]} Nxe8 {[%emt 0:23:09]} 23. Qxb6 {[%emt 0:03:15]} Bxc3 {[%emt 0:03:31]} 24. bxc3 {[%emt 0:00:42]} Bxd1 {[%emt 0:00:36]} 25. Rxd1 {[%emt 0:00:07]} Kg7 {[%emt 0:02:07]} 26. Qc6 {[%emt 0:00:56]} Ra7 {[%emt 0:02:17]} 27. Rd5 {[%emt 0:02:44]} Qe6 {[%emt 0:05:47]} 28. Qxe6 {[%emt 0:03:45]} fxe6 {[%emt 0:00:02]} 29. Be5+ {[%emt 0:00:19]} Kf7 {[%emt 0:00:06]} 30. Rxc5 {[%emt 0:00:12]} Nf6 {[%emt 0:01:42]} 31. Bxf6 {[%emt 0:00:09]} Kxf6 {[%emt 0:00:02]} 32. Kxg2 {[%emt 0:00:07]} Ke7 {[%emt 0:01:39]} 33. a4 {[%emt 0:01:47]} Kd6 {[%emt 0:00:30]} 34. Rb5 {[%emt 0:00:49]} h6 {[%emt 0:01:13]} 35. Kf3 {[%emt 0:01:49]} Rf7+ {[%emt 0:00:16]} 36. Kg3 {[%emt 0:00:11]} Ra7 {[%emt 0:00:26]} 37. f4 {[%emt 0:00:17]} Ra8 {[%emt 0:01:21]} 38. Kf3 {[%emt 0:00:20]} Ke7 {[%emt 0:01:42]} 39. Ke4 {[%emt 0:00:42]} Kf6 {[%emt 0:00:14]} 40. c5 {[%emt 0:00:12]} Ra6 {[%emt 0:00:44]} 41. Rb6 {[%emt 0:00:32]} Ra7 {[%emt 0:00:34]} 42. c6 {[%emt 0:00:59]} g5 {[%emt 0:00:25]} 43. fxg5+ {[%emt 0:00:51]} Kxg5 {[%emt 0:00:05]} 44. Ke5 {[%emt 0:00:19]} Kh4 {[%emt 0:00:10]} 45. Rb7 {[%emt 0:00:54]} Ra6 {[%emt 0:00:11] Kd5} 1-0

[Event "POR-chT 1st League 2017"]
[Site "Leiria"]
[Date "2017.07.23"]
[Round "9"]
[White "Sousa, Andre Ventura"]
[Black "Santos, Antonio P"]
[Result "1-0"]
[ECO "B31"]
[WhiteElo "2368"]
[BlackElo "2237"]
[Annotator "NA"]
[PlyCount "83"]
[EventDate "2017.??.??"]
[EventType "team-tourn"]
[EventCountry "POR"]
[SourceTitle "playchess.com"]
[Source "ChessBase"]
[SourceQuality "1"]
[TimeControl "5400+30"]

1. e4 {[%emt 0:00:00]} c5 {[%emt 0:01:39]} 2. Nf3 {[%emt 0:00:01]} Nc6 {[%emt 0:00:10]} 3. Bb5 {[%emt 0:00:05]} g6 {[%emt 0:00:10]} 4. O-O {[%emt 0:00:04]} Bg7 {[%emt 0:00:12]} 5. Nc3 {[%emt 0:00:04]} Nd4 {[%emt 0:03:52]} 6. Ba4 {[%emt 0:00:04]} a6 {[%emt 0:00:33]} 7. Nxd4 {[%emt 0:00:30]} cxd4 {[%emt 0:00:09]} 8. Ne2 {[%emt 0:00:03]} b5 {[%emt 0:00:51]} 9. Bb3 {[%emt 0:00:03]} Bb7 {[%emt 0:00:11]} 10. d3 {[%emt 0:00:44]} d5 {[%emt 0:02:18]} 11. Ng3 {[%emt 0:01:43]} e6 {[%emt 0:00:23]} 12. f4 {[%emt 0:00:59]} dxe4 {[%emt 0:15:14]} 13. dxe4 {[%emt 0:01:53]} Nf6 {[%emt 0:00:10]} 14. e5 {[%emt 0:08:19]} Ne4 {[%emt 0:06:01]} 15. Nxe4 {[%emt 0:03:34]} Bxe4 {[%emt 0:00:15]} 16. Qe2 {[%emt 0:00:17]} Bd5 {[%emt 0:01:07]} 17. Rd1 {[%emt 0:00:10]} Bxb3 {[%emt 0:22:03]} 18. axb3 {[%emt 0:00:06]} Qb6 {[%emt 0:00:09]} 19. Qf2 {[%emt 0:00:18]} O-O {[%emt 0:01:07]} 20. Qxd4 {[%emt 0:05:26]} Qc7 {[%emt 0:23:35]} 21. Qe4 {[%emt 0:00:25]} Rfc8 {[%emt 0:00:51]} 22. Be3 {[%emt 0:01:37]} Bf8 {[%emt 0:03:23]} 23. c3 {[%emt 0:00:37]} Bc5 {[%emt 0:01:27]} 24. h4 {[%emt 0:03:08]} h5 {[%emt 0:03:44]} 25. Kh2 {[%emt 0:00:09]} Bxe3 {[%emt 0:02:03]} 26. Qxe3 {[%emt 0:00:06]} a5 {[%emt 0:00:16]} 27. Rd6 {[%emt 0:01:11]} a4 {[%emt 0:07:37]} 28. Qb6 {[%emt 0:08:39]} Qe7 {[%emt 0:02:02]} 29. g3 {[%emt 0:00:15]} a3 {[%emt 0:00:36]} 30. Rxa3 {[%emt 0:05:26]} Rxa3 {[%emt 0:00:07]} 31. bxa3 {[%emt 0:00:02]} Qc7 {[%emt 0:01:48]} 32. Qxc7 {[%emt 0:00:11]} Rxc7 {[%emt 0:00:02]} 33. Rd8+ {[%emt 0:00:12]} Kg7 {[%emt 0:00:04]} 34. Rb8 {[%emt 0:00:13]} Rxc3 {[%emt 0:00:02]} 35. Rxb5 {[%emt 0:00:04]} Kf8 {[%emt 0:00:36]} 36. a4 {[%emt 0:00:24]} Rc2+ {[%emt 0:00:39]} 37. Kg1 {[%emt 0:00:12]} Ra2 {[%emt 0:00:21]} 38. a5 {[%emt 0:00:25]} g5 {[%emt 0:00:57]} 39. fxg5 {[%emt 0:01:32]} Kg7 {[%emt 0:00:02]} 40. b4 {[%emt 0:00:04]} Kg6 {[%emt 0:00:17]} 41. Rb7 {[%emt 0:00:03]} Ra4 {[%emt 0:02:42]} 42. Kf2 {[%emt 0:00:09]} 1-0

[Event "POR-chT 1st League 2017"]
[Site "Leiria"]
[Date "2017.07.23"]
[Round "9"]
[White "Diogo, Vasco"]
[Black "Maisuradze, Nino"]
[Result "1/2-1/2"]
[ECO "B32"]
[WhiteElo "2213"]
[BlackElo "2266"]
[Annotator "NA"]
[PlyCount "39"]
[EventDate "2017.??.??"]
[EventType "team-tourn"]
[EventCountry "POR"]
[SourceTitle "playchess.com"]
[Source "ChessBase"]
[SourceQuality "1"]
[TimeControl "5400+30"]

1. e4 {[%emt 0:00:00]} c5 {[%emt 0:00:02]} 2. Nf3 {[%emt 0:00:00]} Nc6 {[%emt 0:00:10]} 3. d4 {[%emt 0:00:21]} cxd4 {[%emt 0:00:03]} 4. Nxd4 {[%emt 0:00:06]} e5 {[%emt 0:00:05]} 5. Nb5 {[%emt 0:00:06]} d6 {[%emt 0:00:02]} 6. c4 {[%emt 0:01:22]} Be7 {[%emt 0:00:09]} 7. N1c3 {[%emt 0:00:31]} a6 {[%emt 0:00:02]} 8. Na3 {[%emt 0:00:07]} f5 {[%emt 0:00:07]} 9. exf5 {[%emt 0:04:20]} Bxf5 {[%emt 0:00:03]} 10. Bd3 {[%emt 0:00:37]} Be6 {[%emt 0:00:02]} 11. Qh5+ {[%emt 0:02:17]} Bf7 {[%emt 0:02:59]} 12. Qh3 {[%emt 0:11:52]} Nf6 {[%emt 0:00:29]} 13. O-O {[%emt 0:02:03]} Nd4 {[%emt 0:06:15]} 14. Bg5 {[%emt 0:11:10]} Be6 {[%emt 0:17:11]} 15. Qh4 {[%emt 0:07:10]} Nf5 {[%emt 0:05:26]} 16. Qh3 {[%emt 0:04:45]} Nd4 {[%emt 0:01:37]} 17. Qh4 {[%emt 0:00:36]} Nf5 {[%emt 0:22:25]} 18. Qh3 {[%emt 0:00:44]} Nd4 {[%emt 0:07:57]} 19. Qh4 {[%emt 0:00:29]} Nf5 {[%emt 0:12:41]} 20. Qh3 {[%emt 0:01:28]} 1/2-1/2

[Event "POR-chT 1st League 2017"]
[Site "Leiria"]
[Date "2017.07.23"]
[Round "9"]
[White "Carneiro, Carlos"]
[Black "Hammes, Michael"]
[Result "1/2-1/2"]
[ECO "D37"]
[WhiteElo "2175"]
[BlackElo "2349"]
[Annotator "NA"]
[PlyCount "59"]
[EventDate "2017.??.??"]
[EventType "team-tourn"]
[EventCountry "POR"]
[SourceTitle "playchess.com"]
[Source "ChessBase"]
[SourceQuality "1"]
[TimeControl "5400+30"]

1. d4 {[%emt 0:00:00]} e6 {[%emt 0:00:55]} 2. c4 {[%emt 0:00:00]} Nf6 {[%emt 0:00:40]} 3. Nf3 {[%emt 0:00:00]} d5 {[%emt 0:00:17]} 4. Nc3 {[%emt 0:00:05]} a6 {[%emt 0:00:36]} 5. cxd5 {[%emt 0:02:35]} exd5 {[%emt 0:00:06]} 6. Bg5 {[%emt 0:02:05]} Be6 {[%emt 0:01:57]} 7. e3 {[%emt 0:00:55]} Nbd7 {[%emt 0:00:35]} 8. Be2 {[%emt 0:01:13]} Bd6 {[%emt 0:03:49]} 9. O-O {[%emt 0:03:09]} c6 {[%emt 0:02:41]} 10. Qc2 {[%emt 0:03:30]} Qc7 {[%emt 0:03:20]} 11. Rab1 {[%emt 0:11:47]} Bg4 {[%emt 0:19:51]} 12. h3 {[%emt 0:03:21]} Bh5 {[%emt 0:01:35]} 13. e4 {[%emt 0:11:43]} Bg6 {[%emt 0:05:21]} 14. Bd3 {[%emt 0:01:45]} Nxe4 {[%emt 0:00:56]} 15. Nxe4 {[%emt 0:03:32]} dxe4 {[%emt 0:01:07]} 16. Bxe4 {[%emt 0:10:41]} O-O {[%emt 0:00:33]} 17. Nh4 {[%emt 0:01:56]} Bxe4 {[%emt 0:08:38]} 18. Qxe4 {[%emt 0:05:01]} Rfe8 {[%emt 0:00:18]} 19. Qg4 {[%emt 0:00:31]} Re6 {[%emt 0:08:02]} 20. Rbe1 {[%emt 0:09:51]} Nf8 {[%emt 0:09:38]} 21. f4 {[%emt 0:06:53]} Rae8 {[%emt 0:10:50]} 22. Rxe6 {[%emt 0:01:26]} Nxe6 {[%emt 0:00:21]} 23. Re1 {[%emt 0:04:28]} Kf8 {[%emt 0:03:49]} 24. Nf5 {[%emt 0:14:39]} f6 {[%emt 0:02:12]} 25. Bxf6 {[%emt 0:00:41]} gxf6 {[%emt 0:02:57]} 26. Qh4 {[%emt 0:00:36]} Bxf4 {[%emt 0:01:18]} 27. Qxf6+ {[%emt 0:00:32]} Qf7 {[%emt 0:00:21]} 28. Qh8+ {[%emt 0:00:13]} Qg8 {[%emt 0:00:08]} 29. Qf6+ {[%emt 0:00:13]} Qf7 {[%emt 0:00:09]} 30. Qh8+ 1/2-1/2

[Event "POR-chT 1st League 2017"]
[Site "Leiria"]
[Date "2017.07.23"]
[Round "9"]
[White "Guerra, Victor"]
[Black "Trindade, Rui Jorge Rodrigues"]
[Result "0-1"]
[ECO "D02"]
[WhiteElo "2136"]
[BlackElo "2033"]
[Annotator "NA"]
[PlyCount "76"]
[EventDate "2017.??.??"]
[EventType "team-tourn"]
[EventCountry "POR"]
[SourceTitle "playchess.com"]
[Source "ChessBase"]
[SourceQuality "1"]
[TimeControl "5400+30"]

1. d4 {[%emt 0:00:32]} d5 {[%emt 0:00:18]} 2. Nf3 {[%emt 0:00:08]} Nf6 {[%emt 0:00:28]} 3. g3 {[%emt 0:00:19]} e6 {[%emt 0:00:23]} 4. Bg2 {[%emt 0:00:24]} Be7 {[%emt 0:00:16]} 5. O-O {[%emt 0:00:13]} O-O {[%emt 0:00:20]} 6. c4 {[%emt 0:00:05]} b6 {[%emt 0:00:35]} 7. cxd5 {[%emt 0:00:47]} exd5 {[%emt 0:00:06]} 8. b3 {[%emt 0:02:36]} Bb7 {[%emt 0:00:39]} 9. Bb2 {[%emt 0:04:33]} Nbd7 {[%emt 0:00:52]} 10. Nc3 {[%emt 0:00:38]} Ne4 {[%emt 0:00:47]} 11. Rc1 {[%emt 0:01:25]} Ndf6 {[%emt 0:00:55]} 12. Ne5 {[%emt 0:02:10]} Nxc3 {[%emt 0:01:18]} 13. Rxc3 {[%emt 0:02:16]} c5 {[%emt 0:02:37]} 14. Rc2 {[%emt 0:02:24]} Rc8 {[%emt 0:03:25]} 15. Bh3 {[%emt 0:03:21]} Rc7 {[%emt 0:00:50]} 16. Qc1 {[%emt 0:05:28]} Ne4 {[%emt 0:01:33]} 17. Rd1 {[%emt 0:01:56]} Ng5 {[%emt 0:01:35]} 18. Bg2 {[%emt 0:00:54]} Ne6 {[%emt 0:00:10]} 19. e4 {[%emt 0:04:17]} f6 {[%emt 0:03:18]} 20. exd5 {[%emt 0:11:11]} fxe5 {[%emt 0:00:12]} 21. dxe5 {[%emt 0:00:33]} Rd7 {[%emt 0:01:21]} 22. d6 {[%emt 0:17:32]} Bg5 {[%emt 0:00:20]} 23. Qb1 {[%emt 0:03:12]} Bxg2 {[%emt 0:00:26]} 24. Kxg2 {[%emt 0:01:53]} Qa8+ {[%emt 0:01:55]} 25. Kg1 {[%emt 0:01:02]} Qf3 {[%emt 0:02:22]} 26. Re1 {[%emt 0:13:02]} Nf4 {[%emt 0:04:30]} 27. gxf4 {[%emt 0:00:23]} Rxf4 {[%emt 0:00:17]} 28. Bc1 {[%emt 0:11:20]} Rg4+ {[%emt 0:02:05]} 29. Kf1 {[%emt 0:00:05]} Qh3+ {[%emt 0:02:41]} 30. Ke2 {[%emt 0:00:06]} Re4+ {[%emt 0:02:01]} 31. Be3 {[%emt 0:04:03]} Bxe3 {[%emt 0:00:18]} 32. Rc3 {[%emt 0:00:47]} Qg4+ {[%emt 0:01:24]} 33. Kf1 {[%emt 0:01:03]} Qh3+ {[%emt 0:01:59]} 34. Ke2 {[%emt 0:00:27]} Rxe5 {[%emt 0:04:08]} 35. fxe3 {[%emt 0:01:06]} Qg2+ {[%emt 0:00:34]} 36. Kd3 {[%emt 0:01:37]} Rxd6+ {[%emt 0:00:16]} 37. Kc4 {[%emt 0:00:16]} Qd5+ {[%emt 0:00:58]} 38. Kb5 {[%emt 0:00:23]} Qc6+ {[%emt 0:00:19]} 0-1

[Event "POR-chT 1st League 2017"]
[Site "Leiria"]
[Date "2017.07.23"]
[Round "9"]
[White "Cavaleiro, Daniel Felipe Costa"]
[Black "Ulyanovskyy, Viktor"]
[Result "1-0"]
[ECO "A43"]
[WhiteElo "2006"]
[BlackElo "2219"]
[Annotator "NA"]
[PlyCount "57"]
[EventDate "2017.??.??"]
[EventType "team-tourn"]
[EventCountry "POR"]
[SourceTitle "playchess.com"]
[Source "ChessBase"]
[SourceQuality "1"]
[TimeControl "5400+30"]

1. d4 {[%emt 0:00:00]} c5 {[%emt 0:00:04]} 2. d5 {[%emt 0:00:00]} f5 {[%emt 0:00:04]} 3. e4 {[%emt 0:04:08]} fxe4 {[%emt 0:02:31]} 4. Nc3 {[%emt 0:01:38]} Nf6 {[%emt 0:00:21]} 5. Nge2 {[%emt 0:00:49]} g6 {[%emt 0:02:59]} 6. Ng3 {[%emt 0:02:35]} Bg7 {[%emt 0:00:18]} 7. Ngxe4 {[%emt 0:05:28]} Nxe4 {[%emt 0:00:07]} 8. Nxe4 {[%emt 0:00:10]} d6 {[%emt 0:02:38]} 9. Qf3 {[%emt 0:07:54]} Bf5 {[%emt 0:09:58]} 10. g4 {[%emt 0:04:25]} Bxe4 {[%emt 0:05:52]} 11. Qxe4 {[%emt 0:03:06]} Qa5+ {[%emt 0:03:39]} 12. Bd2 {[%emt 0:04:37]} Qb6 {[%emt 0:00:07]} 13. c3 {[%emt 0:00:31]} Qxb2 {[%emt 0:09:58]} 14. Rb1 {[%emt 0:01:12]} Qxa2 {[%emt 0:00:04]} 15. Bc4 {[%emt 0:06:16]} Qa3 {[%emt 0:04:03]} 16. Rxb7 {[%emt 0:02:33]} Nd7 {[%emt 0:06:05]} 17. O-O {[%emt 0:19:22]} O-O-O {[%emt 0:42:46]} 18. Rfb1 {[%emt 0:03:33]} Be5 {[%emt 0:02:44]} 19. f4 {[%emt 0:09:40]} Nb6 {[%emt 0:00:46]} 20. Rxe7 {[%emt 0:00:33]} Rde8 {[%emt 0:01:25]} 21. Rxe8+ Rxe8 {[%emt 0:00:00]} 22. fxe5 {[%emt 0:01:47]} Rxe5 {[%emt 0:00:01]} 23. Qf4 {[%emt 0:02:53]} Qa4 {[%emt 0:01:01]} 24. Bb5 {[%emt 0:04:05]} Qxf4 {[%emt 0:01:53]} 25. Bxf4 {[%emt 0:00:01]} Re4 {[%emt 0:00:33]} 26. Bxd6 {[%emt 0:00:59]} Rxg4+ {[%emt 0:00:24]} 27. Kf2 {[%emt 0:00:56]} Nxd5 {[%emt 0:00:01]} 28. Bc6 {[%emt 0:02:08]} Nb6 {[%emt 0:00:35]} 29. Re1 {[%emt 0:00:41]} 1-0

[Event "POR-chT 1st League 2017"]
[Site "Leiria"]
[Date "2017.07.23"]
[Round "9"]
[White "Tubio Agrasar, Pablo"]
[Black "Figuero Toro, Julian Francisco"]
[Result "1/2-1/2"]
[ECO "B10"]
[WhiteElo "1988"]
[BlackElo "2314"]
[Annotator "NA"]
[PlyCount "59"]
[EventDate "2017.??.??"]
[EventType "team-tourn"]
[EventCountry "POR"]
[SourceTitle "playchess.com"]
[Source "ChessBase"]
[SourceQuality "1"]
[TimeControl "5400+30"]

1. e4 {[%emt 0:00:00]} c6 {[%emt 0:01:46]} 2. Nc3 {[%emt 0:00:00]} g6 {[%emt 0:00:09]} 3. d4 {[%emt 0:00:00]} Bg7 {[%emt 0:00:06]} 4. Bc4 {[%emt 0:00:00]} d6 {[%emt 0:00:52]} 5. Nf3 {[%emt 0:02:53]} Nf6 {[%emt 0:00:57]} 6. Bb3 {[%emt 0:04:57]} O-O {[%emt 0:00:52]} 7. O-O {[%emt 0:00:17]} d5 {[%emt 0:09:25]} 8. e5 {[%emt 0:06:02]} Ne8 {[%emt 0:00:43]} 9. Ne2 {[%emt 0:00:21]} f6 {[%emt 0:09:21]} 10. c4 {[%emt 0:06:41]} Nc7 {[%emt 0:02:13]} 11. cxd5 {[%emt 0:07:45]} cxd5 {[%emt 0:00:55]} 12. exf6 {[%emt 0:04:25]} exf6 {[%emt 0:01:00]} 13. Nf4 {[%emt 0:02:08]} Nc6 {[%emt 0:01:36]} 14. h3 {[%emt 0:04:50]} Ne7 {[%emt 0:18:27]} 15. Re1 {[%emt 0:01:04]} Rf7 {[%emt 0:05:27]} 16. Bd2 {[%emt 0:02:35]} a5 {[%emt 0:00:57]} 17. Rc1 {[%emt 0:01:32]} Nc6 {[%emt 0:09:58]} 18. Rc5 {[%emt 0:06:10]} Rd7 {[%emt 0:03:39]} 19. Rc3 {[%emt 0:06:14]} Bf8 {[%emt 0:05:01]} 20. a3 {[%emt 0:05:52]} Rf7 {[%emt 0:00:53]} 21. Rce3 {[%emt 0:03:49]} Re7 {[%emt 0:07:28]} 22. Bc1 {[%emt 0:09:53]} Rxe3 {[%emt 0:01:17]} 23. Rxe3 {[%emt 0:00:02]} Ne7 {[%emt 0:01:21]} 24. Nh2 {[%emt 0:02:41]} Ra6 {[%emt 0:05:06]} 25. Qf3 {[%emt 0:03:37]} Kg7 {[%emt 0:01:03]} 26. Re1 {[%emt 0:01:03]} Nf5 {[%emt 0:02:27]} 27. Rd1 {[%emt 0:02:19]} Nh4 {[%emt 0:03:10]} 28. Qg3 {[%emt 0:03:58]} Nf5 {[%emt 0:00:04]} 29. Qf3 {[%emt 0:00:09]} Nh4 {[%emt 0:00:03]} 30. Qg3 {[%emt 0:01:09]} 1/2-1/2